bitfinex-derivatives/quotes_BTCF0:USTF0_20250416
["timestamp","ask_amount","ask_price","bid_price","bid_amount"]
[1744840945358,0.011,84533.0,84532.0,0.1816932]
[1744840945553,0.01108,84533.0,84532.0,0.1816932]
[1744840946359,0.0844,84562.0,84532.0,0.4734]
[1744840946548,0.0591277,84561.0,84557.0,0.118261]
[1744840946752,0.48925644,84558.0,84557.0,0.118261]
[1744840946948,0.0591325,84555.0,84549.0,0.1182652]
[1744840947157,0.1282736,84550.0,84549.0,0.1182652]
[1744840947359,0.01,84550.0,84549.0,0.2365335]
[1744840947665,0.01,84550.0,84549.0,0.5973335]
[1744840947963,0.36097744,84558.0,84557.0,0.118261]
[1744840948260,4e-08,84558.0,84557.0,0.489061]
[1744840948650,0.00208004,84558.0,84557.0,0.489061]
[1744840948852,0.005,84566.0,84565.0,0.1182498]
[1744840949057,0.005,84566.0,84565.0,0.4890498]
[1744840949759,0.005,84566.0,84565.0,0.5525498]
[1744840950256,0.006,84566.0,84565.0,0.5535498]
[1744840951363,0.1242484,84566.0,84565.0,0.5435498]
[1744840951656,0.1232484,84566.0,84565.0,0.5425498]
[1744840951861,0.006,84566.0,84565.0,0.5445498]
[1744840952248,0.005,84566.0,84565.0,0.5435498]
[1744840952453,0.1242484,84566.0,84565.0,0.5455498]
[1744840952957,0.1232484,84566.0,84565.0,0.5435498]
[1744840953359,0.4840484,84566.0,84565.0,0.001]
[1744840953566,0.0591318,84558.0,84557.0,0.177386]
[1744840953860,0.0691318,84558.0,84557.0,0.177386]
[1744840954056,0.1017318,84558.0,84557.0,0.177386]
[1744840954356,0.01,84558.0,84557.0,0.177386]
[1744840954549,0.01,84558.0,84557.0,0.538186]
[1744840954750,0.01,84558.0,84557.0,0.568386]
[1744840955262,0.01008,84558.0,84557.0,0.568386]
[1744840955649,0.01008,84558.0,84557.0,0.569386]
[1744840955855,0.005,84566.0,84565.0,0.1182498]
[1744840956056,0.3608,84583.0,84573.0,0.1182386]
[1744840956356,0.1182321,84578.0,84573.0,0.1182386]
[1744840956558,0.00025744,84574.0,84573.0,0.1182386]
[1744840957259,4e-08,84574.0,84573.0,0.1814386]
[1744840957564,0.005,84592.0,84591.0,0.1182135]
[1744840958151,0.00508,84592.0,84591.0,0.1814135]
[1744840959358,0.00708,84592.0,84591.0,0.1814135]
[1744840959559,0.00808,84592.0,84591.0,0.1814135]
[1744840960570,0.00017732,84600.0,84599.0,0.1182023]
[1744840961252,0.00025732,84600.0,84599.0,0.1795023]
[1744840961858,0.00025732,84600.0,84596.0,0.0591031]
[1744840962065,0.1773062,84599.0,84598.0,0.1182023]
[1744840962257,0.2102062,84599.0,84598.0,0.1182023]
[1744840962959,0.00625732,84600.0,84599.0,0.1182023]
[1744840963268,0.00625732,84600.0,84599.0,0.1507023]
[1744840963463,0.00617732,84600.0,84599.0,0.1939023]
[1744840963664,0.00225732,84600.0,84599.0,0.1939023]
[1744840964862,0.00225732,84600.0,84599.0,0.1614023]
[1744840965064,0.18395822,84600.0,84599.0,0.1282023]
[1744840965363,0.06775732,84600.0,84599.0,0.1192023]
[1744840965763,0.07775732,84600.0,84599.0,0.1192023]
[1744840966260,0.07975732,84600.0,84599.0,0.1192023]
[1744840966767,0.19795822,84600.0,84599.0,0.1192023]
[1744840968268,0.07975732,84600.0,84599.0,0.1192023]
[1744840968964,0.07975732,84600.0,84599.0,0.001]
[1744840968965,0.19795822,84600.0,84599.0,0.001]
[1744840969364,0.19795822,84600.0,84599.0,0.1192023]
[1744840969570,0.04835732,84600.0,84599.0,0.1192023]
[1744840969775,0.04835732,84600.0,84599.0,0.001]
[1744840969776,0.19925822,84600.0,84599.0,0.001]
[1744840970078,0.19925822,84600.0,84599.0,0.1192023]
[1744840971074,0.19917822,84600.0,84599.0,0.1192023]
[1744840971273,0.19925822,84600.0,84599.0,0.1192023]
[1744840972274,0.08105732,84600.0,84599.0,0.1192023]
[1744840972468,0.04827732,84600.0,84599.0,0.1192023]
[1744840972664,0.04835732,84600.0,84599.0,0.1192023]
[1744840972872,0.16655822,84600.0,84599.0,0.1192023]
[1744840973178,0.19845822,84600.0,84599.0,0.1192023]
[1744840973975,0.19845822,84600.0,84599.0,0.001]
[1744840974677,0.19845822,84600.0,84599.0,0.1192023]
[1744840974878,0.08025732,84600.0,84599.0,0.1192023]
[1744840975177,0.19845822,84600.0,84599.0,0.1192023]
[1744840975570,0.19837822,84600.0,84599.0,0.1192023]
[1744840975770,0.19845822,84600.0,84599.0,0.1192023]
[1744840976167,0.19845822,84600.0,84599.0,0.001]
[1744840976768,0.19845822,84600.0,84599.0,0.1192023]
[1744840979475,0.19845822,84600.0,84599.0,0.001]
[1744840979871,0.0591049,84594.0,84588.0,0.4790147]
[1744840980077,0.1182163,84589.0,84588.0,0.4790147]
[1744840980379,0.1282163,84589.0,84588.0,0.4790147]
[1744840980684,0.1182233,84584.0,84583.0,0.00017732]
[1744840980879,0.4890233,84584.0,84583.0,0.11840202]
[1744840981176,0.4890233,84584.0,84583.0,0.00017732]
[1744840981365,0.1282233,84584.0,84583.0,0.00017732]
[1744840981566,0.1282233,84584.0,84583.0,0.11840202]
[1744840981775,0.1282233,84584.0,84583.0,0.11940202]
[1744840982267,0.01,84584.0,84583.0,0.11940202]
[1744840982466,0.1283033,84584.0,84583.0,0.11940202]
[1744840982781,0.1293033,84584.0,84583.0,0.12140202]
[1744840983372,0.1313033,84584.0,84583.0,0.11940202]
[1744840983778,0.4921033,84584.0,84583.0,0.00117732]
[1744840984169,0.1313033,84584.0,84583.0,0.11940202]
[1744840984378,0.1312233,84584.0,84583.0,0.11840202]
[1744840984567,0.1333033,84584.0,84583.0,0.11840202]
[1744840984973,0.1323033,84584.0,84583.0,0.11940202]
[1744840985582,0.01508,84584.0,84583.0,0.11840202]
[1744840986078,0.1302233,84584.0,84583.0,0.11840202]
[1744840986278,0.1333033,84584.0,84583.0,0.00017732]
[1744840986677,0.1303033,84584.0,84583.0,0.11840202]
[1744840986878,0.1333033,84584.0,84583.0,0.11840202]
[1744840987877,0.1332233,84584.0,84583.0,0.11840202]
[1744840988089,0.1333033,84584.0,84583.0,0.15000202]
[1744840988281,0.1323033,84584.0,84583.0,0.15000202]
[1744840988978,0.1313033,84584.0,84583.0,0.11840202]
[1744840989280,0.1323033,84584.0,84583.0,0.11840202]
[1744840989685,0.1313033,84584.0,84583.0,0.11840202]
[1744840991781,0.1323033,84584.0,84583.0,0.11840202]
[1744840992091,0.1182386,84573.0,84572.0,0.1182398]
[1744840992384,0.2464802,84573.0,84572.0,0.1182398]
[1744840992983,0.1282416,84573.0,84572.0,0.1182398]
[1744840994582,0.1332416,84573.0,84572.0,0.1182398]
[1744840996785,0.015,84573.0,84572.0,0.1182398]
[1744840996981,0.01508,84573.0,84572.0,0.1182398]
[1744840997682,0.1303186,84573.0,84572.0,0.1182398]
[1744840997884,0.1333186,84573.0,84572.0,0.1182398]
[1744840998275,0.1283186,84573.0,84572.0,0.1182398]
[1744840998474,0.1313186,84573.0,84572.0,0.1182398]
[1744840998676,0.01308,84573.0,84572.0,0.1182398]
[1744840998877,0.1312386,84573.0,84572.0,0.1182398]
[1744840999078,0.1313186,84573.0,84572.0,0.1182398]
[1744840999478,0.1644186,84573.0,84572.0,0.1182398]
[1744840999788,0.1634186,84573.0,84572.0,0.1182398]
[1744840999981,0.1654186,84573.0,84572.0,0.1182398]
[1744841000388,0.1634186,84573.0,84572.0,0.1182398]
[1744841000686,0.04518,84573.0,84572.0,0.1182398]
[1744841000877,0.1634186,84573.0,84572.0,0.1182398]
[1744841001074,0.1624186,84573.0,84572.0,0.1182398]
[1744841001986,0.1624186,84573.0,84569.0,0.0619]
[1744841001987,0.1032999,84573.0,84569.0,0.1182438]
[1744841002184,0.1032999,84573.0,84569.0,0.0591221]
[1744841002185,0.1282428,84570.0,84569.0,0.0591221]
[1744841003785,0.0591234,84568.0,84564.0,0.00017732]
[1744841004084,0.1282498,84565.0,84564.0,0.00017732]
[1744841004285,0.4890498,84565.0,84564.0,0.00017732]
[1744841004684,0.1282498,84565.0,84564.0,0.00017732]
[1744841005076,0.1282498,84565.0,84564.0,0.11842852]
[1744841005283,0.1919498,84565.0,84564.0,0.00017732]
[1744841005480,0.1919498,84565.0,84564.0,0.00117732]
[1744841005676,0.20413288,84565.0,84564.0,0.00117732]
[1744841006679,0.1919498,84565.0,84564.0,0.00117732]
[1744841006887,0.6053498,84565.0,84564.0,0.00017732]
[1744841007090,0.118268,84552.0,84542.0,0.0591407]
[1744841007390,0.1182722,84550.0,84549.0,0.1182694]
[1744841007687,0.1182806,84544.0,84543.0,0.1774142]
[1744841007886,0.1182806,84544.0,84543.0,0.0321]
[1744841008083,0.0591423,84542.0,84538.0,0.0304]
[1744841008284,0.0333,84541.0,84540.0,0.1182834]
[1744841008482,0.059143,84540.0,84537.0,0.0050865]
[1744841008681,0.1282876,84538.0,84537.0,0.1233755]
[1744841009387,0.1930876,84538.0,84537.0,0.1233755]
[1744841009983,0.1930876,84538.0,84537.0,0.0050865]
[1744841010700,0.1930876,84538.0,84537.0,0.1253755]
[1744841010893,0.1940876,84538.0,84537.0,0.1273755]
[1744841011095,0.0425,84538.0,84537.0,0.1273755]
[1744841011288,0.011,84538.0,84537.0,0.1273755]
[1744841011599,0.01108,84538.0,84537.0,0.1273755]
[1744841012296,0.01108,84538.0,84537.0,0.1473755]
[1744841012495,0.011,84538.0,84537.0,0.1473755]
[1744841012795,0.01108,84538.0,84537.0,0.1473755]
[1744841012992,0.01108,84538.0,84537.0,0.1273755]
[1744841013182,0.1293676,84538.0,84537.0,0.1273755]
[1744841014692,0.01108,84538.0,84537.0,0.1273755]
[1744841014892,0.011,84538.0,84537.0,0.1273755]
[1744841015084,0.01108,84538.0,84537.0,0.1273755]
[1744841015283,0.1293676,84538.0,84537.0,0.1273755]
[1744841015895,0.01108,84538.0,84537.0,0.1273755]
[1744841017584,0.011,84538.0,84537.0,0.1273755]
[1744841017784,0.00010801,84546.0,84545.0,0.1182778]
[1744841018096,0.11844552,84552.0,84551.0,0.1182694]
[1744841018297,0.12844552,84552.0,84551.0,0.1182694]
[1744841019089,0.15854552,84552.0,84551.0,0.1182694]
[1744841020198,0.01017732,84552.0,84551.0,0.1182694]
[1744841020495,0.01017732,84552.0,84551.0,0.1192694]
[1744841020891,0.01017732,84552.0,84551.0,0.1392694]
[1744841021088,0.01025732,84552.0,84551.0,0.1392694]
[1744841021492,0.01017732,84552.0,84551.0,0.1392694]
[1744841021684,0.01025732,84552.0,84551.0,0.1392694]
[1744841022286,0.00010801,84561.0,84551.0,0.021]
[1744841022491,0.1773592,84574.0,84573.0,0.1182386]
[1744841022693,0.2364803,84574.0,84573.0,0.1182386]
[1744841023091,0.2365603,84574.0,84573.0,0.1182386]
[1744841023594,0.5973603,84574.0,84573.0,0.1182386]
[1744841024193,0.6351603,84574.0,84573.0,0.1182386]
[1744841024584,0.6341603,84574.0,84573.0,0.1182386]
[1744841025188,0.6341603,84574.0,84561.0,0.0591275]
[1744841025189,0.0591234,84568.0,84567.0,0.118247]
[1744841025396,0.4199234,84568.0,84567.0,0.118247]
[1744841026296,0.4838234,84568.0,84567.0,0.118247]
[1744841026884,0.4908234,84568.0,84567.0,0.119247]
[1744841032895,0.1300234,84568.0,84567.0,0.001]
[1744841033100,0.1182638,84555.0,84542.0,0.0591405]
[1744841033396,0.118275,84547.0,84546.0,0.26714]
[1744841033789,0.0591356,84550.0,84549.0,0.1182722]
[1744841035205,0.0911356,84550.0,84549.0,0.1182722]
[1744841035405,0.0911356,84550.0,84549.0,0.1504722]
[1744841035604,0.0911356,84550.0,84549.0,0.1514722]
[1744841036009,0.0921356,84550.0,84549.0,0.1534722]
[1744841036408,0.0911356,84550.0,84549.0,0.1514722]
[1744841036607,0.0921356,84550.0,84549.0,0.1524722]
[1744841037208,0.0921356,84550.0,84549.0,0.1842722]
[1744841037407,0.001,84550.0,84549.0,0.1842722]
[1744841037708,0.001,84550.0,84549.0,0.2042722]
[1744841037900,0.1192708,84550.0,84549.0,0.2042722]
[1744841038097,0.00108,84550.0,84549.0,0.2042722]
[1744841039102,0.41148,84574.0,84557.0,0.118261]
[1744841039103,0.00017743,84558.0,84557.0,0.118261]
[1744841039305,0.00017743,84558.0,84557.0,0.489061]
[1744841039604,0.00025743,84558.0,84557.0,0.550061]
[1744841040209,0.00010801,84565.0,84564.0,0.1182512]
[1744841040406,0.1182484,84566.0,84565.0,0.1182498]
[1744841040904,0.0306,84577.0,84571.0,0.0591204]
[1744841041096,0.1182294,84580.0,84579.0,0.1182288]
[1744841041602,0.1183094,84580.0,84579.0,0.1182288]
[1744841042497,0.00508,84580.0,84579.0,0.1182288]
[1744841042999,0.015,84580.0,84579.0,0.1825288]
[1744841043200,0.01508,84580.0,84579.0,0.1825288]
[1744841043407,0.015,84580.0,84579.0,0.1925288]
[1744841043711,0.02308,84580.0,84579.0,0.1935288]
[1744841044503,0.01808,84580.0,84579.0,0.1935288]
[1744841045807,1e-08,84582.0,84581.0,0.1182274]
[1744841046010,1e-08,84582.0,84581.0,0.1282274]
[1744841046210,8.001e-05,84582.0,84581.0,0.1282274]
[1744841047217,0.005,84592.0,84591.0,0.1182135]
[1744841047400,0.005,84592.0,84591.0,0.4790135]
[1744841048216,0.00010801,84604.0,84603.0,0.1181967]
[1744841048406,0.11830331,84604.0,84603.0,0.1181967]
[1744841048610,0.1182065,84598.0,84597.0,0.177301]
[1744841048812,0.0591777,84604.0,84603.0,0.1181967]
[1744841050506,0.0631777,84604.0,84603.0,0.1191967]
[1744841051105,0.0671777,84604.0,84603.0,0.1191967]
[1744841052710,0.0671777,84604.0,84603.0,0.001]
[1744841052905,0.1182135,84591.0,84590.0,0.01]
[1744841053108,0.1182233,84584.0,84583.0,0.11840162]
[1744841053719,0.1182233,84584.0,84583.0,0.00017732]
[1744841054010,0.0591167,84577.0,84564.0,0.3608]
[1744841054316,0.0591167,84577.0,84563.0,0.12333754]
[1744841054317,0.1182512,84564.0,84563.0,0.12333754]
[1744841054617,0.1282512,84564.0,84563.0,0.12333754]
[1744841055417,0.1932512,84564.0,84563.0,0.12333754]
[1744841055814,0.1952512,84564.0,84563.0,0.12333754]
[1744841056116,0.1953312,84564.0,84563.0,0.12333754]
[1744841056717,0.1963312,84564.0,84563.0,0.12333754]
[1744841057218,0.1943312,84564.0,84563.0,0.12333754]
[1744841057424,0.1963312,84564.0,84563.0,0.12333754]
[1744841057827,0.07808,84564.0,84563.0,0.12333754]
[1744841058319,0.1963312,84564.0,84563.0,0.12333754]
[1744841058920,0.1943312,84564.0,84563.0,0.12333754]
[1744841059514,0.1933312,84564.0,84563.0,0.12333754]
[1744841060023,0.04298,84564.0,84563.0,0.12333754]
[1744841060226,0.04398,84564.0,84563.0,0.12333754]
[1744841060426,0.0459,84564.0,84563.0,0.12333754]
[1744841060618,0.04598,84564.0,84563.0,0.18553754]
[1744841060926,0.1642312,84564.0,84563.0,0.18553754]
[1744841061222,0.1932312,84564.0,84563.0,0.12333754]
[1744841061926,0.1922312,84564.0,84563.0,0.12333754]
[1744841062221,0.1932312,84564.0,84563.0,0.12333754]
[1744841062423,0.1922312,84564.0,84563.0,0.12333754]
[1744841062620,0.1922312,84564.0,84563.0,0.12433754]
[1744841062816,0.07398,84564.0,84563.0,0.12433754]
[1744841063126,0.01208,84564.0,84563.0,0.12333754]
[1744841063533,0.1312512,84564.0,84563.0,0.15473754]
[1744841063829,0.1313312,84564.0,84563.0,0.15473754]
[1744841064334,0.1293312,84564.0,84563.0,0.12333754]
[1744841064517,0.1615312,84564.0,84563.0,0.12333754]
[1744841065127,0.1625312,84564.0,84563.0,0.12633754]
[1744841066730,0.1625312,84564.0,84563.0,0.12333754]
[1744841066731,0.1615312,84564.0,84563.0,0.12333754]
[1744841066931,0.1615312,84564.0,84563.0,0.15623754]
[1744841067132,0.1615312,84564.0,84563.0,0.12333754]
[1744841067333,0.1615312,84564.0,84563.0,0.00608494]
[1744841067537,0.1773907,84559.0,84558.0,0.118259]
[1744841067720,0.1773907,84559.0,84555.0,0.00017732]
[1744841067721,0.1182624,84556.0,84555.0,0.00017732]
[1744841067926,0.1182722,84550.0,84549.0,0.1182711]
[1744841068124,0.1282722,84550.0,84549.0,0.1182711]
[1744841068434,0.2225722,84550.0,84549.0,0.1182711]
[1744841069931,0.1774221,84544.0,84543.0,0.1774123]
[1744841070135,0.1874221,84544.0,84543.0,0.0591385]
[1744841070535,0.1874221,84544.0,84541.0,0.05931892]
[1744841070536,0.118282,84542.0,84541.0,0.11846072]
[1744841070732,0.128282,84542.0,84541.0,0.11846072]
[1744841071741,0.129282,84542.0,84541.0,0.12346072]
[1744841073339,0.129282,84542.0,84541.0,0.12546072]
[1744841075124,0.490082,84542.0,84541.0,0.12546072]
[1744841075939,0.490082,84542.0,84541.0,0.00717732]
[1744841076140,0.059146,84535.0,84528.0,0.1283002]
[1744841076340,0.1283002,84529.0,84528.0,0.1183002]
[1744841077137,0.1604002,84529.0,84528.0,0.1183002]
[1744841077341,0.1604002,84529.0,84528.0,0.1560002]
[1744841078039,0.1614002,84529.0,84528.0,0.1600002]
[1744841079140,0.1614002,84529.0,84528.0,0.1293002]
[1744841079644,0.1614002,84529.0,84528.0,0.1263002]
[1744841079844,0.1604002,84529.0,84528.0,0.1496002]
[1744841080035,0.1614002,84529.0,84528.0,0.1516002]
[1744841080429,0.011,84529.0,84528.0,0.1516002]
[1744841080636,0.011,84529.0,84528.0,0.1616002]
[1744841081145,0.01108,84529.0,84528.0,0.1616002]
[1744841081845,0.1293802,84529.0,84528.0,0.1616002]
[1744841082043,0.1293802,84529.0,84522.0,0.00865749]
[1744841082044,0.1183184,84516.0,84515.0,0.0591593]
[1744841082246,0.1283184,84516.0,84515.0,0.0591593]
[1744841083143,0.1283184,84516.0,84515.0,0.0601593]
[1744841083342,0.1604184,84516.0,84515.0,0.0907593]
[1744841083545,0.1614184,84516.0,84515.0,0.0907593]
[1744841084045,0.0431,84516.0,84515.0,0.4515593]
[1744841084247,0.0431,84516.0,84515.0,0.4828593]
[1744841084846,0.1614984,84516.0,84515.0,0.4828593]
[1744841085145,0.1614984,84516.0,84515.0,0.0907593]
[1744841085645,0.1614984,84516.0,84515.0,0.1220593]
[1744841090643,0.04318,84516.0,84515.0,0.1220593]
[1744841090846,0.1614984,84516.0,84515.0,0.1220593]
[1744841092346,0.011,84516.0,84515.0,0.1320593]
[1744841092743,0.01108,84516.0,84515.0,0.1320593]
[1744841093444,0.011,84516.0,84515.0,0.1320593]
[1744841093844,0.01108,84516.0,84515.0,0.1320593]
[1744841094049,0.1293984,84516.0,84515.0,0.1320593]
[1744841095047,0.1598984,84516.0,84515.0,0.1220593]
[1744841095246,0.01108,84516.0,84515.0,0.1320593]
[1744841095445,0.011,84516.0,84515.0,0.1320593]
[1744841095755,0.01108,84516.0,84515.0,0.1320593]
[1744841097955,0.01108,84516.0,84515.0,0.4928593]
[1744841101252,0.00017743,84524.0,84523.0,0.1183086]
[1744841101457,0.01017743,84524.0,84523.0,0.4891086]
[1744841101757,0.01025743,84524.0,84523.0,0.5522086]
[1744841102456,0.01025743,84524.0,84523.0,0.5532086]
[1744841102645,0.4114,84538.0,84534.0,0.1182932]
[1744841102846,0.00026573,84546.0,84541.0,0.1182834]
[1744841103047,0.4199312,84556.0,84555.0,0.1182596]
[1744841103246,0.5381976,84556.0,84555.0,0.1182596]
[1744841103854,0.1207293,84559.0,84557.0,0.1182596]
[1744841104058,0.1182624,84556.0,84555.0,0.0591317]
[1744841104251,0.4791424,84556.0,84555.0,0.0591317]
[1744841104445,0.4790624,84556.0,84555.0,0.0591317]
[1744841104652,0.4791424,84556.0,84555.0,0.0591317]
[1744841104847,0.5098424,84556.0,84555.0,0.0591317]
[1744841105449,0.1490424,84556.0,84555.0,0.0591317]
[1744841105647,0.1530424,84556.0,84555.0,0.0591317]
[1744841106650,0.5198424,84556.0,84555.0,0.0591317]
[1744841113662,0.1590424,84556.0,84555.0,0.0591317]
[1744841121373,0.04078,84556.0,84555.0,0.0591317]
[1744841121562,0.01008,84556.0,84555.0,0.1313317]
[1744841121768,0.4114,84587.0,84555.0,0.3322]
[1744841121970,0.18292,84587.0,84586.0,0.1182205]
[1744841122875,0.183,84587.0,84586.0,0.1182205]
[1744841123071,0.18292,84587.0,84586.0,0.1182205]
[1744841123272,0.183,84587.0,84586.0,0.1182205]
[1744841123871,0.186,84587.0,84586.0,0.1192205]
[1744841124371,0.189,84587.0,84586.0,0.1192205]
[1744841125272,0.00608,84587.0,84586.0,0.1192205]
[1744841125461,0.00017743,84595.0,84588.0,0.0591086]
[1744841125668,0.00034265,84599.0,84598.0,0.1182037]
[1744841125866,0.1182023,84599.0,84598.0,0.1182037]
[1744841126167,0.1182823,84599.0,84598.0,0.1182037]
[1744841126570,0.1182823,84599.0,84598.0,0.1494037]
[1744841127177,0.1202823,84599.0,84598.0,0.1494037]
[1744841128068,0.1222823,84599.0,84598.0,0.1494037]
[1744841128575,0.1222823,84599.0,84598.0,0.1182037]
[1744841128968,0.177311,84597.0,84596.0,0.1182058]
[1744841129368,0.00408,84599.0,84598.0,0.1182037]
[1744841129568,0.1222823,84599.0,84598.0,0.1182037]
[1744841130075,0.1182823,84599.0,84598.0,0.1182037]
[1744841130480,0.1828823,84599.0,84598.0,0.1182037]
[1744841130675,0.1848823,84599.0,84598.0,0.1182037]
[1744841130873,0.1868823,84599.0,84598.0,0.1182037]
[1744841134073,0.1222823,84599.0,84598.0,0.1182037]
[1744841144591,0.1222823,84599.0,84598.0,0.1498037]
[1744841147181,0.1773258,84590.0,84587.0,0.1450288]
[1744841147375,0.1182191,84587.0,84582.0,0.0591125]
[1744841147684,0.1182302,84579.0,84572.0,0.0591195]
[1744841147891,0.1282302,84579.0,84575.0,0.03]
[1744841148079,0.1282302,84579.0,84578.0,0.11840903]
[1744841148274,0.01,84579.0,84578.0,0.11840903]
[1744841148479,0.01008,84579.0,84578.0,0.11840903]
[1744841148683,0.04038,84579.0,84578.0,0.11840903]
[1744841148991,0.1889102,84579.0,84578.0,0.11840903]
[1744841149381,0.1899102,84579.0,84578.0,0.12340903]
[1744841149581,0.1899102,84579.0,84578.0,0.12540903]
[1744841149892,0.1889102,84579.0,84578.0,0.12040903]
[1744841150187,0.1899102,84579.0,84578.0,0.12040903]
[1744841150984,0.1889102,84579.0,84578.0,0.12040903]
[1744841151292,0.5507102,84579.0,84578.0,0.00017743]
[1744841151488,0.5507102,84579.0,84578.0,0.11840903]
[1744841152079,0.5497102,84579.0,84578.0,0.11840903]
[1744841152276,0.5507102,84579.0,84578.0,0.11840903]
[1744841152682,0.5517102,84579.0,84578.0,0.11840903]
[1744841152887,0.5507102,84579.0,84578.0,0.11840903]
[1744841153083,0.5517102,84579.0,84578.0,0.11840903]
[1744841153284,0.5537102,84579.0,84578.0,0.11840903]
[1744841153481,0.1929102,84579.0,84578.0,0.11840903]
[1744841153680,0.07268,84579.0,84578.0,0.11840903]
[1744841153878,0.07268,84579.0,84578.0,0.01017743]
[1744841153879,0.1928302,84579.0,84578.0,0.01017743]
[1744841154190,0.5536302,84579.0,84578.0,0.01017743]
[1744841154684,0.5537102,84579.0,84578.0,0.01017743]
[1744841155279,0.5517102,84579.0,84578.0,0.01017743]
[1744841155781,0.5497102,84579.0,84578.0,0.01017743]
[1744841155980,0.5537102,84579.0,84578.0,0.01017743]
[1744841156183,0.5537102,84579.0,84578.0,0.12840903]
[1744841156378,0.5516302,84579.0,84578.0,0.12840903]
[1744841156578,0.5557102,84579.0,84578.0,0.01117743]
[1744841157002,0.5547102,84579.0,84578.0,0.01017743]
[1744841157690,0.5557102,84579.0,84578.0,0.01017743]
[1744841158393,0.5527102,84579.0,84578.0,0.01017743]
[1744841158595,0.5547102,84579.0,84578.0,0.01017743]
[1744841158986,0.5527102,84579.0,84578.0,0.01017743]
[1744841159186,0.5557102,84579.0,84578.0,0.01017743]
[1744841160694,0.5557102,84579.0,84565.0,0.01]
[1744841160695,0.1182484,84566.0,84565.0,0.01]
[1744841160891,0.0591294,84559.0,84552.0,0.01]
[1744841161093,0.3708,84566.0,84543.0,0.60076528]
[1744841161094,0.1182722,84549.0,84543.0,0.60076528]
[1744841161293,0.1282722,84549.0,84543.0,0.63086528]
[1744841161490,0.1282722,84549.0,84543.0,0.69000548]
[1744841161691,0.1282722,84549.0,84548.0,0.29568256]
[1744841161884,0.1916722,84549.0,84548.0,0.17740896]
[1744841162089,0.20330151,84549.0,84548.0,0.17740896]
[1744841162390,0.20530151,84549.0,84548.0,0.17740896]
[1744841162591,0.20530151,84549.0,84548.0,0.29568256]
[1744841162898,0.1182736,84548.0,84547.0,0.0301]
[1744841163094,0.1282736,84548.0,84547.0,0.148375]
[1744841163292,0.1920736,84548.0,84547.0,0.148375]
[1744841163999,0.1930736,84548.0,84547.0,0.148375]
[1744841165091,0.1950736,84548.0,84547.0,0.148375]
[1744841165795,0.1950736,84548.0,84547.0,0.0301]
[1744841166096,0.1940736,84548.0,84547.0,0.0301]
[1744841166293,0.1950736,84548.0,84547.0,0.148375]
[1744841167691,0.1930736,84548.0,84547.0,0.148375]
[1744841167887,0.1940736,84548.0,84547.0,0.148375]
[1744841168491,0.1930736,84548.0,84547.0,0.148375]
[1744841168994,0.1930736,84548.0,84540.0,0.17760133]
[1744841168995,0.0591409,84543.0,84540.0,0.17760133]
[1744841169298,0.0591409,84543.0,84542.0,0.150282]
[1744841169595,0.0691409,84543.0,84542.0,0.150282]
[1744841169994,0.0691409,84543.0,84542.0,0.032]
[1744841170691,0.1182834,84541.0,84540.0,0.00017733]
[1744841170896,0.059143,84540.0,84537.0,0.1233744]
[1744841171096,0.1282876,84538.0,84537.0,0.1233744]
[1744841171297,0.1282876,84538.0,84537.0,0.0050865]
[1744841171798,0.1282876,84538.0,84524.0,0.01]
[1744841171799,0.1183058,84526.0,84524.0,0.01]
[1744841172012,0.1183058,84526.0,84525.0,0.0591528]
[1744841172193,0.1283058,84526.0,84525.0,0.0591528]
[1744841173199,0.1183142,84520.0,84519.0,0.1183142]
[1744841173403,0.1183156,84518.0,84517.0,0.00017743]
[1744841173601,0.01,84518.0,84517.0,0.11849443]
[1744841173797,0.1283156,84518.0,84517.0,0.11849443]
[1744841173997,0.1283956,84518.0,84517.0,0.11849443]
[1744841174902,0.1283956,84518.0,84517.0,0.00017743]
[1744841175095,0.1283956,84518.0,84517.0,0.12149443]
[1744841175495,0.1293956,84518.0,84517.0,0.13049443]
[1744841175897,0.1283956,84518.0,84517.0,0.12149443]
[1744841176106,0.1293956,84518.0,84517.0,0.12849443]
[1744841181007,0.4901956,84518.0,84517.0,0.01017743]
[1744841181306,0.118324,84512.0,84508.0,0.0591647]
[1744841181504,0.128324,84512.0,84505.0,0.0315]
[1744841181806,0.118338,84502.0,84501.0,0.118419]
[1744841182103,0.128338,84502.0,84501.0,0.150039]
[1744841182304,0.128338,84502.0,84500.0,0.1]
[1744841182305,0.01,84502.0,84496.0,0.000108]
[1744841182605,0.01,84502.0,84492.0,0.0001458]
[1744841182606,0.1183562,84489.0,84487.0,0.0001458]
[1744841182799,0.4891562,84489.0,84487.0,0.0001458]
[1744841183006,0.4891562,84489.0,84486.0,0.1183597]
[1744841183207,0.4891562,84489.0,84488.0,0.17748896]
[1744841183903,0.4891562,84489.0,84488.0,0.17740896]
[1744841184201,0.4891562,84489.0,84488.0,0.17748896]
[1744841185100,0.5192562,84489.0,84488.0,0.17748896]
[1744841185297,0.5192562,84489.0,84482.0,0.0592908]
[1744841185298,0.8744782,84489.0,84482.0,0.000108]
[1744841185605,0.1183688,84480.0,84479.0,0.0304]
[1744841185901,0.1283688,84480.0,84479.0,0.0304]
[1744841186106,0.1283688,84480.0,84479.0,0.0627]
[1744841187101,0.1608688,84480.0,84479.0,0.1497702]
[1744841187898,0.1608688,84480.0,84479.0,0.1799702]
[1744841188099,0.1618688,84480.0,84479.0,0.1799702]
[1744841191411,0.1183758,84475.0,84473.0,0.0318]
[1744841191606,0.1775643,84475.0,84474.0,0.1183772]
[1744841191805,0.1875643,84475.0,84474.0,0.1183772]
[1744841192214,0.0691885,84475.0,84474.0,0.1183772]
[1744841192605,0.0701885,84475.0,84474.0,0.1183772]
[1744841193011,0.0691885,84475.0,84474.0,0.1183772]
[1744841193207,0.0701885,84475.0,84474.0,0.1203772]
[1744841193908,0.1283772,84475.0,84474.0,0.1203772]
[1744841195110,0.4891772,84475.0,84474.0,0.1203772]
[1744841200806,0.1283772,84475.0,84474.0,0.1203772]
[1744841201010,0.1283758,84475.0,84474.0,0.1203772]
[1744841204222,0.1283758,84475.0,84474.0,0.1524772]
[1744841211026,0.1283758,84475.0,84474.0,0.0341]
[1744841211223,0.1283758,84475.0,84474.0,0.1524772]
[1744841211523,0.1283758,84475.0,84474.0,0.32988616]
[1744841211725,0.1931758,84475.0,84474.0,0.32996616]
[1744841213025,0.1283758,84475.0,84474.0,0.32996616]
[1744841214115,0.01,84475.0,84474.0,0.32996616]
[1744841214329,0.1283758,84475.0,84474.0,0.32996616]
[1744841214520,0.1283758,84475.0,84474.0,0.1525572]
[1744841215829,0.00017754,84488.0,84474.0,0.03418]
[1744841216026,0.11853514,84488.0,84487.0,0.118359]
[1744841216221,0.12853514,84488.0,84487.0,0.118359]